fUST/lending_fUST_20240902
["ID","MTS","AMOUNT","RATE_DAILY","PERIOD"]
[336851713,1725211845470,-500.0,0.00024657,2]
[336851714,1725211845479,-500.0,0.00024657,2]
[336851715,1725211845488,-500.0,0.00024657,2]
[336851716,1725211845497,-500.0,0.00024657,2]
[336851717,1725211845507,-500.0,0.00024657,2]
[336851718,1725211845517,-500.0,0.00024657,2]
[336851719,1725211845527,-1653.19,0.00024657,2]
[336851720,1725211845536,-502.07144363,0.00024657,2]
[336851721,1725211845545,-442.27831404,0.00024657,2]
[336851722,1725211845555,-500.0,0.00024657,2]
[336851723,1725211845564,-548.03232326,0.00024657,2]
[336851724,1725211845574,-1602.47,0.00024657,2]
[336851725,1725211845584,-500.0,0.00024657,2]
[336851726,1725211845594,-500.0,0.00024657,2]
[336851727,1725211845603,-500.0,0.00024657,2]
[336851728,1725211845613,-623.92,0.00024657,2]
[336851729,1725211845623,-1879.08,0.00024657,2]
[336851730,1725211845632,-500.0,0.00024657,2]
[336851731,1725211845642,-500.0,0.00024657,2]
[336851732,1725211845651,-500.0,0.00024657,2]
[336851733,1725211845661,-500.0,0.00024657,2]
[336851734,1725211845671,-617.75649372,0.00024657,2]
[336851735,1725211845681,-500.0,0.00024657,2]
[336851736,1725211845691,-500.0,0.00024657,2]
[336851737,1725211845700,-500.0,0.00024657,2]
[336851738,1725211845710,-500.0,0.00024657,2]
[336851739,1725211845719,-500.0,0.00024657,2]
[336851740,1725211845729,-500.0,0.00024657,2]
[336851741,1725211845739,-501.9532307,0.00024657,2]
[336851742,1725211845750,-4892.5,0.00024657,2]
[336851743,1725211845761,-500.0,0.00024657,2]
[336851744,1725211845771,-656.37,0.00024657,2]
[336851745,1725211845781,-1024.6,0.00024657,2]
[336851746,1725211845790,-500.0,0.00024657,2]
[336851747,1725211845799,-500.0,0.00024657,2]
[336851748,1725211845809,-500.0,0.00024657,2]
[336851749,1725211845818,-1215.74,0.00024657,2]
[336851750,1725211845827,-2001.73,0.00024657,2]
[336851751,1725211845836,-500.0,0.00024657,2]
[336851752,1725211845846,-1910.98,0.00024657,2]
[336851753,1725211845855,-1864.43,0.00024657,2]
[336851754,1725211845865,-500.0,0.00024657,2]
[336851756,1725211845874,-686.97,0.00024657,2]
[336851757,1725211845884,-500.0,0.00024657,2]
[336851758,1725211845894,-500.0,0.00024657,2]
[336851759,1725211845903,-500.0,0.00024657,2]
[336851760,1725211845914,-3769.85,0.00024657,2]
[336851761,1725211845924,-1805.71,0.00024657,2]
[336851762,1725211845934,-500.0,0.00024657,2]
[336851763,1725211845944,-1256.44,0.00024657,2]
[336851764,1725211845954,-618.04,0.00024657,2]
[336851765,1725211845963,-500.0,0.00024657,2]
[336851766,1725211845972,-829.4,0.00024657,2]
[336851767,1725211845982,-500.0,0.00024657,2]
[336851768,1725211845991,-500.0,0.00024657,2]
[336851769,1725211846000,-500.0,0.00024657,2]
[336851770,1725211846013,-2473.19,0.00024657,2]
[336851771,1725211846023,-500.0,0.00024657,2]
[336851772,1725211846032,-500.0,0.00024657,2]
[336851773,1725211846041,-1526.42,0.00024657,2]
[336851774,1725211846050,-1014.6,0.00024657,2]
[336851775,1725211846059,-500.0,0.00024657,2]
[336851776,1725211846068,-500.0,0.00024657,2]
[336851777,1725211846078,-500.0,0.00024657,2]
[336851778,1725211846088,-500.0,0.00024657,2]
[336851779,1725211846097,-1906.44,0.00024657,2]
[336851781,1725211846107,-500.0,0.00024657,2]
[336851782,1725211846116,-500.0,0.00024657,2]
[336851784,1725211846125,-1374.9,0.00024657,2]
[336851786,1725211846135,-500.0,0.00024657,2]
[336851788,1725211846144,-549.3,0.00024657,2]
[336851790,1725211846153,-500.0,0.00024657,2]
[336851792,1725211846163,-500.0,0.00024657,2]
[336851794,1725211846172,-587.47,0.00024657,2]
[336851796,1725211846182,-500.0,0.00024657,2]
[336851798,1725211846191,-500.0,0.00024657,2]
[336851800,1725211846201,-200.0,0.00024658,15]
[336851802,1725211846211,-380.0,0.00024658,2]
[336851804,1725211846221,-150.112233,0.000247,3]
[336851806,1725211846231,-150.112233,0.000247,5]
[336851808,1725211846241,-150.112233,0.000247,3]
[336851810,1725211846250,-150.112233,0.000248,4]
[336851812,1725211846263,-150.112233,0.000248,4]
[336851814,1725211846273,-420.0,0.00024858,2]
[336851817,1725211846284,-150.112233,0.000249,4]
[336851819,1725211846294,-150.112233,0.000249,2]
[336851821,1725211846304,-150.112233,0.000249,3]
[336851823,1725211846313,-150.112233,0.000249,3]
[336851825,1725211846324,-57959.45144514,0.000249,2]
[336851827,1725211846333,-500.0,0.0002492,2]
[336851829,1725211846343,-327.70453322,0.0002492,2]
[336851831,1725211846353,-472.99812073,0.00024931,2]
[336851833,1725211846367,-500.0,0.00024931,2]
[336851835,1725211846377,-500.0,0.00024931,2]
[336851836,1725211846387,-500.0,0.00024931,2]
[336851838,1725211846396,-500.0,0.00024931,2]
[336851839,1725211846405,-502.4327883,0.00024931,2]
[336851840,1725211846415,-500.0,0.00024931,2]
[336851841,1725211846424,-500.0,0.00024931,2]
[336851842,1725211846434,-500.0,0.00024931,2]
[336851843,1725211846445,-500.0,0.00024931,2]
[336851844,1725211846454,-500.0,0.00024931,2]
[336851845,1725211846464,-500.0,0.00024931,2]
[336851846,1725211846473,-500.0,0.00024931,2]
[336851847,1725211846482,-500.0,0.00024931,2]
[336851848,1725211846496,-842.71,0.00024931,2]
[336851849,1725211846515,-500.0,0.00024931,2]
[336851851,1725211846530,-500.0,0.00024931,2]
[336851852,1725211846542,-500.0,0.00024931,2]
[336851853,1725211846557,-500.0,0.00024931,2]
[336851854,1725211846571,-500.0,0.00024931,2]
[336851855,1725211846587,-562.12071904,0.00024931,2]
[336851856,1725211846601,-500.0,0.00024931,2]
[336851857,1725211846616,-500.0,0.00024931,2]
[336851858,1725211846631,-500.0,0.00024931,2]
[336851859,1725211846644,-500.0,0.00024931,2]
[336851860,1725211846659,-500.0,0.00024931,2]
[336851861,1725211846673,-500.0,0.00024931,2]
[336851862,1725211846687,-500.0,0.00024931,2]
[336851863,1725211846700,-500.0,0.00024931,2]
[336851864,1725211846711,-503.56852955,0.00024931,2]
[336851865,1725211846724,-500.0,0.00024931,2]
[336851866,1725211846736,-500.0,0.00024931,2]
[336851867,1725211846749,-500.0,0.00024931,2]
[336851868,1725211846764,-500.0,0.00024931,2]
[336851869,1725211846778,-500.0,0.00024931,2]
[336851870,1725211846792,-500.0,0.00024931,2]
[336851871,1725211846806,-501.59387068,0.00024931,2]
[336851872,1725211846817,-500.0,0.00024931,2]
[336851873,1725211846828,-500.0,0.00024931,2]
[336851874,1725211846839,-500.0,0.00024931,2]
[336851875,1725211846854,-485.19704956,0.00024931,2]
[336851876,1725211846869,-500.0,0.00024931,2]
[336851877,1725211846880,-500.0,0.00024931,2]
[336851878,1725211846894,-500.0,0.00024931,2]
[336851879,1725211846907,-500.0,0.00024931,2]
[336851880,1725211846920,-206.64923251,0.00024931,2]
[336851881,1725211846931,-500.0,0.00024931,2]
[336851882,1725211846941,-500.0,0.00024931,2]
[336851883,1725211846953,-500.0,0.00024931,2]
[336851884,1725211846965,-500.0,0.00024931,2]
[336851885,1725211846977,-500.0,0.00024931,2]
[336851886,1725211846988,-500.0,0.00024931,2]
[336851887,1725211847000,-500.0,0.00024931,2]
[336851888,1725211847014,-500.0,0.00024931,2]
[336851889,1725211847029,-500.0,0.00024931,2]
[336851890,1725211847044,-500.0,0.00024931,2]
[336851891,1725211847055,-168.19705482,0.00024931,2]
[336851892,1725211847067,-510.52,0.00024931,2]
[336851893,1725211847079,-500.0,0.00024931,2]
[336851894,1725211847092,-501.39913101,0.00024931,2]
[336851895,1725211847104,-500.0,0.00024931,2]
[336851896,1725211847116,-500.0,0.00024931,2]
[336851897,1725211847128,-630.42,0.00024931,2]
[336851898,1725211847140,-500.0,0.00024931,2]
[336851899,1725211847152,-500.0,0.00024931,2]
[336851900,1725211847164,-768.91,0.00024931,2]
[336851901,1725211847176,-500.0,0.00024931,2]
[336851902,1725211847189,-458.16028587,0.00024931,2]
[336851903,1725211847201,-500.0,0.00024931,2]
[336851904,1725211847213,-500.0,0.00024931,2]
[336851905,1725211847225,-500.0,0.00024931,2]
[336851906,1725211847237,-500.0,0.00024931,2]
[336851907,1725211847249,-748.03,0.00024931,2]
[336851908,1725211847264,-500.0,0.00024931,2]
[336851909,1725211847277,-500.0,0.00024931,2]
[336851910,1725211847289,-500.0,0.00024931,2]
[336851911,1725211847301,-210.95682273,0.00024931,2]
[336851912,1725211847312,-500.0,0.00024931,2]
[336851913,1725211847324,-500.0,0.00024931,2]
[336851914,1725211847336,-500.0,0.00024931,2]
[336851915,1725211847351,-500.0,0.00024931,2]
[336851916,1725211847363,-344.95063862,0.00024931,2]
[336851917,1725211847376,-500.0,0.00024931,2]
[336851918,1725211847389,-794.65,0.00024931,2]
[336851919,1725211847401,-500.0,0.00024931,2]
[336851920,1725211847413,-500.0,0.00024931,2]
[336851921,1725211847425,-504.98489087,0.00024931,2]
[336851922,1725211847436,-416.61689695,0.00024931,2]
[336851923,1725211847448,-500.0,0.00024931,2]
[336851924,1725211847459,-500.0,0.00024931,2]
[336851925,1725211847471,-1086.08,0.00024931,2]
[336851926,1725211847482,-500.0,0.00024931,2]
[336851927,1725211847495,-500.0,0.00024931,2]
[336851928,1725211847506,-500.0,0.00024931,2]
[336851929,1725211847521,-754.43,0.00024931,2]
[336851930,1725211847533,-500.0,0.00024931,2]
[336851931,1725211847545,-500.0,0.00024931,2]
[336851932,1725211847557,-612.82,0.00024931,2]
[336851933,1725211847569,-500.0,0.00024931,2]
[336851934,1725211847581,-500.0,0.00024931,2]
[336851935,1725211847593,-500.0,0.00024931,2]
[336851936,1725211847605,-268.96457699,0.00024931,2]
[336851937,1725211847617,-500.0,0.00024931,2]
[336851938,1725211847628,-500.0,0.00024931,2]
[336851939,1725211847640,-500.0,0.00024931,2]
[336851940,1725211847651,-500.0,0.00024931,2]
[336851941,1725211847664,-500.0,0.00024931,2]
[336851942,1725211847675,-500.0,0.00024931,2]
[336851943,1725211847687,-500.0,0.00024931,2]
[336851944,1725211847699,-500.0,0.00024931,2]
[336851945,1725211847711,-500.0,0.00024931,2]
[336851946,1725211847722,-500.0,0.00024931,2]
[336851947,1725211847734,-500.0,0.00024931,2]
[336851948,1725211847744,-500.0,0.00024931,2]
[336851949,1725211847753,-500.0,0.00024931,2]
[336851950,1725211847765,-500.0,0.00024931,2]
[336851951,1725211847775,-500.0,0.00024931,2]
[336851952,1725211847784,-158.71404665,0.00024931,2]
[336851953,1725211847794,-500.0,0.00024931,2]
[336851954,1725211847803,-500.0,0.00024931,2]
[336851955,1725211847812,-500.0,0.00024931,2]
[336851956,1725211847821,-500.0,0.00024931,2]
[336851957,1725211847831,-500.0,0.00024931,2]
[336851958,1725211847840,-500.0,0.00024931,2]
[336851959,1725211847849,-500.0,0.00024931,2]
[336851960,1725211847859,-500.0,0.00024931,2]
[336851961,1725211847869,-497.34361056,0.00024931,2]
[336851962,1725211847878,-3231.91,0.00024931,2]
[336851963,1725211847888,-581.1,0.00024931,2]
[336851964,1725211847897,-500.0,0.00024931,2]
[336851965,1725211847907,-500.0,0.00024931,2]
[336851966,1725211848144,-603.14385645,0.00024931,2]
[336851967,1725211848161,-500.0,0.00024931,2]
[336851968,1725211848172,-500.0,0.00024931,2]
[336851969,1725211848182,-902.5,0.00024931,2]
[336851970,1725211848192,-500.0,0.00024931,2]
[336851971,1725211848201,-500.0,0.00024931,2]
[336851972,1725211848211,-500.0,0.00024931,2]
[336851973,1725211848220,-500.0,0.00024931,2]
[336851974,1725211848230,-500.0,0.00024931,2]
[336851975,1725211848239,-500.0,0.00024931,2]
[336851976,1725211848249,-500.0,0.00024931,2]
[336851977,1725211848260,-1202.55,0.00024931,2]
[336851978,1725211848270,-500.0,0.00024931,2]
[336851979,1725211848280,-500.0,0.00024931,2]
[336851980,1725211848290,-500.0,0.00024931,2]
[336851981,1725211848299,-500.0,0.00024931,2]
[336851982,1725211848309,-500.0,0.00024931,2]
[336851983,1725211848318,-251.9472781,0.00024931,2]
[336851984,1725211848327,-500.0,0.00024931,2]
[336851985,1725211848338,-500.0,0.00024931,2]
[336851986,1725211848351,-612.07,0.00024931,2]
[336851987,1725211848361,-500.0,0.00024931,2]
[336851988,1725211848371,-598.8,0.00024931,2]
[336851989,1725211848381,-420.25974606,0.00024931,2]
[336851990,1725211848391,-500.0,0.00024931,2]
[336851991,1725211848401,-500.0,0.00024931,2]
[336851992,1725211848410,-500.0,0.00024931,2]
[336851993,1725211848420,-500.0,0.00024931,2]
[336851994,1725211848430,-667.28,0.00024931,2]
[336851995,1725211848442,-693.25,0.00024931,2]
[336851996,1725211848451,-500.0,0.00024931,2]
[336851997,1725211848461,-500.0,0.00024931,2]
[336851998,1725211848471,-500.0,0.00024931,2]
[336851999,1725211848480,-500.0,0.00024931,2]
[336852000,1725211848490,-525.86,0.00024931,2]
[336852001,1725211848499,-501.75064935,0.00024931,2]
[336852002,1725211848511,-500.0,0.00024931,2]
[336852003,1725211848521,-500.0,0.00024931,2]
[336852004,1725211848530,-269.24649168,0.00024931,2]
[336852005,1725211848539,-500.0,0.00024931,2]
[336852006,1725211848549,-500.0,0.00024931,2]
[336852007,1725211848558,-500.0,0.00024931,2]
[336852008,1725211848568,-500.0,0.00024931,2]
[336852009,1725211848577,-500.0,0.00024931,2]
[336852010,1725211848586,-500.0,0.00024931,2]
[336852011,1725211848596,-545.68,0.00024931,2]
[336852012,1725211848605,-629.93,0.00024931,2]
[336852013,1725211848614,-500.0,0.00024931,2]
[336852014,1725211848624,-500.0,0.00024931,2]
[336852015,1725211848634,-500.0,0.00024931,2]
[336852016,1725211848644,-500.0,0.00024931,2]
[336852017,1725211848654,-500.0,0.00024931,2]
[336852018,1725211848664,-500.0,0.00024931,2]
[336852019,1725211848673,-500.0,0.00024931,2]
[336852020,1725211848683,-500.0,0.00024931,2]
[336852021,1725211848692,-524.37575311,0.00024931,2]
[336852022,1725211848701,-500.0,0.00024931,2]
[336852023,1725211848711,-500.0,0.00024931,2]
[336852024,1725211848720,-500.0,0.00024931,2]
[336852025,1725211848730,-500.0,0.00024931,2]
[336852026,1725211848740,-500.0,0.00024931,2]
[336852027,1725211848750,-500.0,0.00024931,2]
[336852028,1725211848762,-500.0,0.00024931,2]
[336852029,1725211848771,-500.0,0.00024931,2]
[336852030,1725211848781,-574.6,0.00024931,2]
[336852031,1725211848790,-985.83,0.00024931,2]
[336852032,1725211848799,-500.0,0.00024931,2]
[336852033,1725211848808,-500.0,0.00024931,2]
[336852034,1725211848818,-1271.86,0.00024931,2]
[336852035,1725211848829,-500.0,0.00024931,2]
[336852036,1725211848838,-500.0,0.00024931,2]
[336852037,1725211848849,-500.0,0.00024931,2]
[336852038,1725211848858,-500.0,0.00024931,2]
[336852039,1725211848868,-1000.24,0.00024931,2]
[336852040,1725211848877,-502.82497924,0.00024931,2]
[336852041,1725211848887,-722.61,0.00024931,2]
[336852042,1725211848896,-500.0,0.00024931,2]
[336852043,1725211848906,-757.54,0.00024931,2]
[336852044,1725211848915,-500.0,0.00024931,2]
[336852045,1725211848925,-2040.16,0.00024931,2]
[336852046,1725211848934,-527.51,0.00024931,2]
[336852047,1725211848943,-500.0,0.00024931,2]
[336852048,1725211848953,-500.0,0.00024931,2]
[336852049,1725211848963,-500.0,0.00024931,2]
[336852050,1725211848972,-500.0,0.00024931,2]
[336852051,1725211848982,-500.0,0.00024931,2]
[336852052,1725211848991,-500.0,0.00024931,2]
[336852053,1725211849001,-505.35678504,0.00024931,2]
[336852054,1725211849012,-1543.26,0.00024931,2]
[336852055,1725211849023,-500.0,0.00024931,2]
[336852056,1725211849032,-500.0,0.00024931,2]
[336852057,1725211849041,-399.9,0.00024931,2]
[336852058,1725211849051,-500.0,0.00024931,2]
[336852059,1725211849060,-500.0,0.00024931,2]
[336852060,1725211849070,-535.5,0.00024931,2]
[336852061,1725211849079,-500.0,0.00024931,2]
[336852062,1725211849088,-503.75109237,0.00024931,2]
[336852063,1725211849098,-2336.07,0.00024931,2]
[336852064,1725211849108,-500.0,0.00024931,2]
[336852065,1725211849117,-500.0,0.00024931,2]
[336852066,1725211849127,-500.0,0.00024931,2]
[336852067,1725211849136,-500.0,0.00024931,2]
[336852068,1725211849145,-504.22309825,0.00024931,2]
[336852069,1725211849155,-500.0,0.00024931,2]
[336852070,1725211849164,-500.0,0.00024931,2]
[336852071,1725211849174,-542.43,0.00024931,2]
[336852072,1725211849184,-500.0,0.00024931,2]
[336852073,1725211849194,-500.0,0.00024931,2]
[336852074,1725211849203,-939.44,0.00024931,2]
[336852075,1725211849212,-500.0,0.00024931,2]
[336852076,1725211849222,-500.0,0.00024931,2]
[336852077,1725211849231,-547.8,0.00024931,2]
[336852078,1725211849240,-1350.53,0.00024931,2]
[336852079,1725211849250,-500.0,0.00024931,2]
[336852080,1725211849262,-500.0,0.00024931,2]
[336852081,1725211849271,-500.0,0.00024931,2]
[336852082,1725211849281,-641.16,0.00024931,2]
[336852083,1725211849290,-1389.88,0.00024931,2]
[336852084,1725211849299,-503.56710317,0.00024931,2]
[336852085,1725211849309,-500.0,0.00024931,2]
[336852086,1725211849319,-500.0,0.00024931,2]
[336852087,1725211849328,-500.0,0.00024931,2]
[336852088,1725211849338,-500.0,0.00024931,2]
[336852089,1725211849349,-1020.95,0.00024931,2]
[336852090,1725211849359,-500.0,0.00024931,2]
[336852091,1725211849370,-654.03,0.00024931,2]
[336852092,1725211849379,-500.0,0.00024931,2]
[336852093,1725211849389,-507.03,0.00024931,2]
[336852094,1725211849399,-1613.77,0.00024931,2]
[336852095,1725211849408,-500.0,0.00024931,2]
[336852096,1725211849417,-500.0,0.00024931,2]
[336852097,1725211849426,-500.0,0.00024931,2]
[336852098,1725211849437,-500.0,0.00024931,2]
[336852099,1725211849448,-500.0,0.00024931,2]
[336852100,1725211849460,-500.0,0.00024931,2]
[336852101,1725211849469,-500.0,0.00024931,2]
[336852102,1725211849479,-500.0,0.00024931,2]
[336852103,1725211849489,-500.0,0.00024931,2]
[336852104,1725211849498,-500.0,0.00024931,2]
[336852105,1725211849509,-500.0,0.00024931,2]
[336852106,1725211849519,-1996.21,0.00024931,2]
[336852107,1725211849528,-662.07,0.00024931,2]
[336852108,1725211849538,-758.95,0.00024931,2]
[336852109,1725211849548,-500.0,0.00024931,2]
[336852110,1725211849558,-2800.96,0.00024931,2]
[336852111,1725211849567,-717.43,0.00024931,2]
[336852112,1725211849576,-500.0,0.00024931,2]
[336852113,1725211849586,-500.0,0.00024931,2]
[336852114,1725211849596,-1884.55,0.00024931,2]
[336852115,1725211849605,-500.0,0.00024931,2]
[336852116,1725211849615,-500.0,0.00024931,2]
[336852117,1725211849624,-500.0,0.00024931,2]
[336852118,1725211849633,-1519.46,0.00024931,2]
[336852119,1725211849643,-1991.74,0.00024931,2]
[336852120,1725211849652,-500.0,0.00024931,2]
[336852121,1725211849662,-500.0,0.00024931,2]
[336852122,1725211849671,-500.0,0.00024931,2]
[336852123,1725211849681,-500.0,0.00024931,2]
[336852124,1725211849690,-984.42,0.00024931,2]
[336852125,1725211849699,-1569.23,0.00024931,2]
[336852126,1725211849708,-500.0,0.00024931,2]
[336852127,1725211849718,-500.0,0.00024931,2]
[336852128,1725211849728,-680.38,0.00024931,2]
[336852129,1725211849737,-693.1,0.00024931,2]
[336852130,1725211849747,-500.0,0.00024931,2]
[336852131,1725211849759,-500.0,0.00024931,2]
[336852132,1725211849769,-500.0,0.00024931,2]
[336852133,1725211849778,-500.0,0.00024931,2]
[336852134,1725211849788,-13594.53,0.00024931,2]
[336852135,1725211849797,-677.63,0.00024931,2]
[336852136,1725211849807,-500.0,0.00024931,2]
[336852137,1725211849817,-500.0,0.00024931,2]
[336852138,1725211849829,-500.0,0.00024931,2]
[336852139,1725211849839,-3302.42,0.00024931,2]
[336852140,1725211849849,-500.0,0.00024931,2]
[336852141,1725211849859,-764.29,0.00024931,2]
[336852142,1725211849868,-645.11,0.00024931,2]
[336852143,1725211849879,-500.0,0.00024931,2]
[336852144,1725211849889,-500.0,0.00024931,2]
[336852145,1725211849899,-500.0,0.00024931,2]
[336852146,1725211849908,-1414.98,0.00024931,2]
[336852147,1725211849918,-1820.25,0.00024931,2]
[336852148,1725211849927,-500.0,0.00024931,2]
[336852149,1725211849936,-500.0,0.00024931,2]
[336852150,1725211849945,-500.0,0.00024931,2]
[336852151,1725211849955,-500.0,0.00024931,2]
[336852152,1725211849966,-500.0,0.00024931,2]
[336852153,1725211849975,-937.31,0.00024931,2]
[336852154,1725211849985,-500.0,0.00024931,2]
[336852155,1725211849996,-523.56,0.00024931,2]
[336852156,1725211850005,-2149.78,0.00024931,2]
[336852157,1725211850016,-2411.19,0.00024931,2]
[336852158,1725211850026,-500.0,0.00024931,2]
[336852159,1725211850036,-2775.51,0.00024931,2]
[336852160,1725211850046,-500.0,0.00024931,2]
[336852161,1725211850056,-1653.26,0.00024931,2]
[336852162,1725211850065,-500.0,0.00024931,2]
[336852163,1725211850075,-500.0,0.00024931,2]
[336852164,1725211850085,-780.69,0.00024931,2]
[336852165,1725211850095,-1054.06,0.00024931,2]
[336852166,1725211850105,-531.4484865,0.00024931,2]
[336852167,1725211850115,-1729.94,0.00024931,2]
[336852168,1725211850125,-1471.87,0.00024931,2]
[336852169,1725211850135,-1324.57,0.00024931,2]
[336852170,1725211850145,-501.19927622,0.00024931,2]
[336852171,1725211850154,-2700.66,0.00024931,2]
[336852172,1725211850164,-1664.99,0.00024931,2]
[336852173,1725211850174,-642.68,0.00024931,2]
[336852174,1725211850184,-572.92375437,0.00024931,2]
[336852175,1725211850194,-500.0,0.00024931,2]
[336852176,1725211850203,-500.0,0.00024931,2]
[336852177,1725211850213,-500.0,0.00024931,2]
[336852178,1725211850223,-1069.27,0.00024931,2]
[336852179,1725211850233,-500.0,0.00024931,2]
[336852180,1725211850243,-1236.36,0.00024931,2]
[336852181,1725211850253,-500.0,0.00024931,2]
[336852182,1725211850268,-1360.11,0.00024931,2]
[336852183,1725211850284,-500.0,0.00024931,2]
[336852184,1725211850294,-500.0,0.00024931,2]
[336852185,1725211850303,-501.57173856,0.00024931,2]
[336852186,1725211850313,-1246.0,0.00024931,2]
[336852187,1725211850323,-1242.95,0.00024931,2]
[336852188,1725211850332,-500.0,0.00024931,2]
[336852189,1725211850343,-815.79,0.00024931,2]
[336852190,1725211850356,-7047.65,0.00024931,2]
[336852191,1725211850366,-500.0,0.00024931,2]
[336852192,1725211850376,-1214.71,0.00024931,2]
[336852193,1725211850385,-500.0,0.00024931,2]
[336852194,1725211850397,-500.0,0.00024931,2]
[336852195,1725211850406,-512.64148021,0.00024931,2]
[336852196,1725211850415,-500.0,0.00024931,2]
[336852197,1725211850425,-500.0,0.00024931,2]
[336852198,1725211850435,-500.0,0.00024931,2]
[336852199,1725211850445,-1653.19,0.00024931,2]
[336852200,1725211850455,-1602.47,0.00024931,2]
[336852201,1725211850464,-623.92,0.00024931,2]
[336852202,1725211850475,-1879.08,0.00024931,2]
[336852203,1725211850484,-500.0,0.00024931,2]
[336852204,1725211850494,-642.31456498,0.00024931,2]
[336852205,1725211850504,-500.0,0.00024931,2]
[336852206,1725211850523,-500.0,0.00024931,2]
[336852207,1725211850534,-500.0,0.00024931,2]
[336852208,1725211850545,-500.0,0.00024931,2]
[336852209,1725211850554,-4892.5,0.00024931,2]
[336852210,1725211850564,-500.0,0.00024931,2]
[336852211,1725211850573,-656.37,0.00024931,2]
[336852212,1725211850583,-1024.6,0.00024931,2]
[336852213,1725211850593,-500.0,0.00024931,2]
[336852214,1725211850604,-500.0,0.00024931,2]
[336852215,1725211850614,-500.0,0.00024931,2]
[336852216,1725211850623,-1215.74,0.00024931,2]
[336852217,1725211850634,-2001.73,0.00024931,2]
[336852218,1725211850644,-500.0,0.00024931,2]
[336852219,1725211850654,-1910.98,0.00024931,2]
[336852220,1725211850664,-1864.43,0.00024931,2]
[336852221,1725211850674,-500.0,0.00024931,2]
[336852222,1725211850684,-686.97,0.00024931,2]
[336852223,1725211850694,-500.0,0.00024931,2]
[336852224,1725211850705,-3769.85,0.00024931,2]
[336852225,1725211850715,-1805.71,0.00024931,2]
[336852226,1725211850725,-500.0,0.00024931,2]
[336852227,1725211850736,-1256.44,0.00024931,2]
[336852228,1725211850746,-618.04,0.00024931,2]
[336852229,1725211850757,-829.4,0.00024931,2]
[336852230,1725211850775,-500.0,0.00024931,2]
[336852231,1725211850785,-500.0,0.00024931,2]
[336852232,1725211850796,-2473.19,0.00024931,2]
[336852233,1725211850807,-500.0,0.00024931,2]
[336852234,1725211850817,-500.0,0.00024931,2]
[336852235,1725211850827,-1526.42,0.00024931,2]
[336852236,1725211850838,-1014.6,0.00024931,2]
[336852237,1725211850849,-500.0,0.00024931,2]
[336852238,1725211850858,-502.75961608,0.00024931,2]
[336852239,1725211850868,-1906.44,0.00024931,2]
[336852240,1725211850879,-500.0,0.00024931,2]
[336852241,1725211850889,-500.0,0.00024931,2]
[336852242,1725211850899,-1374.9,0.00024931,2]
[336852243,1725211850910,-500.0,0.00024931,2]